[Event "FIDE World School-ch O-15 2025"]
[Site "Vrnjacka Banja"]
[Date "2025.03.28"]
[Round "9.1"]
[White "Urangoo, Gurvanbaatar"]
[Black "Scheglov, Gleb"]
[Result "0-1"]
[Annotator "RC"]
[ECO "B15"]
[WhiteElo "1982"]
[BlackElo "2306"]
[PlyCount "90"]
[EventDate "2025.03.19"]
[EventType "swiss"]
[EventCountry "SRB"]
[SourceTitle "playchess.com"]
[Source "ChessBase"]
[SourceQuality "1"]
[TimeControl "5400+30"]

1. e4 {[%emt 1:31:00]} c6 {[%emt 0:03:53]} 2. d4 {[%emt 0:00:00]} d5 {[%emt 0:00:28]} 3. Nc3 {[%emt 0:00:00]} dxe4 {[%emt 0:00:04]} 4. Nxe4 {[%emt 0:00:00]} Nf6 {[%emt 0:00:05]} 5. Nxf6+ {[%emt 0:00:00]} exf6 {[%emt 0:00:01]} 6. Be3 {[%emt 0:00:00]} Bd6 {[%emt 0:01:58]} 7. Bd3 {[%emt 0:00:00]} O-O {[%emt 0:01:00]} 8. Ne2 {[%emt 0:00:00]} Na6 {[%emt 0:06:37]} 9. c4 {[%emt 0:00:00]} Be6 {[%emt 0:12:54]} 10. a3 {[%emt 0:00:00]} b5 {[%emt 0:02:56]} 11. cxb5 {[%emt 0:00:00]} cxb5 {[%emt 0:00:01]} 12. Bxb5 {[%emt 0:00:00]} Qa5+ {[%emt 0:14:53]} 13. Nc3 {[%emt 0:00:00]} Rab8 {[%emt 0:00:29]} 14. a4 {[%emt 0:00:00]} Nc7 {[%emt 0:01:39]} 15. O-O {[%emt 0:00:00]} a6 {[%emt 0:00:47]} 16. Bd3 {[%emt 0:00:00]} Rb6 {[%emt 0:50:45]} 17. b4 Rxb4 {[%emt 0:00:00]} 18. Ne4 {[%emt 0:00:00]} Rb2 {[%emt 0:00:00]} 19. Bc1 {[%emt 0:00:00]} Be7 {[%emt 0:00:00]} 20. Bd2 {[%emt 0:00:00]} Rbb8 {[%emt 0:00:00]} 21. Bf4 {[%emt 0:00:00]} Qb6 {[%emt 0:00:00]} 22. Qh5 {[%emt 0:00:00]} Rbd8 {[%emt 0:00:00]} 23. Qh4 {[%emt 0:00:00]} g6 {[%emt 0:00:00]} 24. Bg5 {[%emt 0:11:30]} Nd5 25. Bh6 {[%emt 0:00:00]} Qxd4 {[%emt 0:00:00]} 26. Bxf8 {[%emt 0:00:00]} Rxf8 {[%emt 0:00:00]} 27. Qg3 {[%emt 0:00:00]} f5 {[%emt 0:00:00]} 28. Nd2 {[%emt 0:00:00]} Nb4 {[%emt 0:00:00]} 29. Rad1 {[%emt 0:00:00]} Qxd3 {[%emt 0:00:00]} 30. Qc7 {[%emt 0:00:00]} Qd6 {[%emt 0:00:00]} 31. Qc3 {[%emt 0:00:00]} Rc8 {[%emt 0:00:00]} 32. Qf3 {[%emt 0:00:00]} Qd3 {[%emt 0:00:00]} 33. Qf4 {[%emt 0:00:00]} Nd5 {[%emt 0:00:00]} 34. Qh6 {[%emt 0:00:00]} Bf8 {[%emt 0:00:00]} 35. Qg5 {[%emt 0:00:00]} h6 {[%emt 0:00:00]} 36. Qg3 {[%emt 0:00:00]} Qxg3 {[%emt 0:00:00]} 37. hxg3 {[%emt 0:00:00]} Nc3 {[%emt 0:00:00]} 38. Ra1 {[%emt 0:00:00]} Bg7 {[%emt 0:00:00]} 39. Kh2 {[%emt 0:00:00]} a5 {[%emt 0:00:00]} 40. Nf3 {[%emt 0:00:00]} Rc4 {[%emt 0:00:00]} 41. Rfc1 {[%emt 0:00:24]} Rxa4 {[%emt 0:00:00]} 42. Rxa4 {[%emt 0:00:28]} Nxa4 {[%emt 0:00:00]} 43. Nd2 {[%emt 0:00:11]} Nc3 {[%emt 0:00:00]} 44. Nb1 {[%emt 0:00:13]} Nxb1 {[%emt 0:00:00]} 45. Rxb1 {[%emt 0:00:05]} a4 {[%emt 0:00:00]} 0-1

[Event "FIDE World School-ch O-15 2025"]
[Site "Vrnjacka Banja"]
[Date "2025.03.28"]
[Round "9.2"]
[White "Tabatadze, Erekle"]
[Black "Perera, K Damiru Damsara"]
[Result "1-0"]
[Annotator "NA RC"]
[ECO "D00"]
[WhiteElo "2180"]
[BlackElo "1626"]
[PlyCount "107"]
[EventDate "2025.03.19"]
[EventType "swiss"]
[EventCountry "SRB"]
[SourceTitle "playchess.com"]
[Source "ChessBase"]
[SourceQuality "1"]
[TimeControl "5400+30"]

1. d4 {[%emt 0:00:11]} Nf6 {[%emt 0:00:09]} 2. Nc3 {[%emt 0:00:07]} d5 {[%emt 0:01:45]} 3. Bf4 {[%emt 0:00:06]} c6 {[%emt 0:00:16]} 4. e3 {[%emt 0:01:25]} Bf5 {[%emt 0:00:43]} 5. Nf3 {[%emt 0:00:04]} e6 {[%emt 0:00:32]} 6. Ne5 {[%emt 0:00:34] D00: 1 d4 d5: Unusual lines.} Bd6 {[%emt 0:01:46] 6...h6 is the modern continuation.} 7. Be2 {[%emt 0:02:48]} Bxe5 $146 {[%emt 0:03:48]} ({Predecessor:} 7... h6 8. g4 Bh7 9. h4 Ne4 10. Nxe4 dxe4 11. g5 Bf5 12. gxh6 Bxe5 13. dxe5 Qa5+ {1-0 Gadimbayli,A (2463)-Priyanka,K (2202) Novi Sad TS Mix 233rd 2022 (6)}) 8. Bxe5 {[%emt 0:02:50]} O-O {[%emt 0:01:37]} 9. g4 {[%emt 0:00:40]} Be4 {[%emt 0:27:39]} 10. f3 {[%emt 0:04:11]} Bg6 {[%emt 0:00:16]} 11. h4 {[%emt 0:00:44]} h5 {[%emt 0:00:23]} 12. g5 {[%emt 0:02:10]} Nfd7 {[%emt 0:00:23]} 13. Bd6 {[%emt 0:07:06]} Re8 {[%emt 0:00:15]} 14. f4 {[%emt 0:00:13]} Nb6 {[%emt 0:03:11]} 15. Bxb8 {[%emt 0:01:38]} Rxb8 {[%emt 0:03:19]} 16. Bxh5 {[%emt 0:00:25]} Bxh5 {[%emt 0:01:42]} 17. Qxh5 {[%emt 0:00:07]} Nc4 {[%emt 0:00:12]} 18. Nd1 {[%emt 0:00:18]} Qa5+ {[%emt 0:00:32]} 19. Kf2 {[%emt 0:00:42]} Qd2+ {[%emt 0:12:43]} (19... c5 $11) 20. Qe2 {[%emt 0:00:09]} Qxe2+ {[%emt 0:02:09]} 21. Kxe2 {[%emt 0:00:07]} g6 {[%emt 0:00:14]} 22. b3 {[%emt 0:01:09]} Nd6 {[%emt 0:00:05]} 23. Nf2 {[%emt 0:00:13]} Nf5 $18 {[%emt 0:00:49]} 24. Rh3 {[%emt 0:01:09]} Kg7 {[%emt 0:00:16]} 25. Ng4 {[%emt 0:00:47]} Rh8 {[%emt 0:13:56]} 26. Rah1 {[%emt 0:00:46]} Kf8 {[%emt 0:00:37]} 27. Kd3 {[%emt 0:01:01]} Ng7 {[%emt 0:02:10]} 28. Nf6 {[%emt 0:00:35]} Ke7 {[%emt 0:00:08]} 29. h5 {[%emt 0:00:35]} Nxh5 {[%emt 0:00:47]} 30. Nxh5 {[%emt 0:00:24]} Rxh5 {[%emt 0:00:40]} 31. Rxh5 {[%emt 0:00:05]} gxh5 {[%emt 0:00:08]} 32. Rxh5 {[%emt 0:00:08]} Rg8 {[%emt 0:00:15]} 33. c4 {[%emt 0:00:55]} Kf8 {[%emt 0:02:10]} 34. Rh7 {[%emt 0:00:21]} Ke7 {[%emt 0:01:57]} 35. e4 {[%emt 0:00:12]} dxc4+ {[%emt 0:03:49]} 36. bxc4 {[%emt 0:01:49]} b5 {[%emt 0:00:14]} 37. cxb5 {[%emt 0:00:18]} cxb5 {[%emt 0:00:01]} 38. d5 {[%emt 0:00:33]} a5 {[%emt 0:01:10]} 39. dxe6 {[%emt 0:00:20]} Kxe6 {[%emt 0:00:13]} 40. f5+ {[%emt 0:00:08]} Ke5 {[%emt 0:00:56]} 41. Rxf7 {[%emt 0:00:04]} Rxg5 {[%emt 0:00:11]} 42. Re7+ {[%emt 0:00:06]} Kf6 {[%emt 0:01:24]} 43. Re6+ {[%emt 0:00:12]} Kf7 {[%emt 0:00:05]} 44. Rb6 {[%emt 0:00:24]} Rg3+ {[%emt 0:01:13]} 45. Kd4 {[%emt 0:00:06]} b4 {[%emt 0:00:06]} 46. Ke5 {[%emt 0:00:10]} Ra3 {[%emt 0:00:24]} 47. Rb7+ {[%emt 0:00:08]} Kg8 {[%emt 0:00:34]} 48. Ke6 {[%emt 0:00:28]} Rxa2 {[%emt 0:00:23]} 49. f6 {[%emt 0:00:29]} Rf2 {[%emt 0:00:32]} 50. Rb8+ {[%emt 0:00:03]} Kh7 {[%emt 0:00:13]} 51. f7 {[%emt 0:00:04]} a4 {[%emt 0:01:49]} 52. f8=Q {[%emt 0:00:29]} Rxf8 {[%emt 0:00:07]} 53. Rxf8 {[%emt 0:00:30]} a3 {[%emt 0:00:04]} 54. Ra8 {[%emt 0:00:00]} 1-0

[Event "FIDE World School-ch O-15 2025"]
[Site "Vrnjacka Banja"]
[Date "2025.03.28"]
[Round "9.3"]
[White "Yessengali, Adizhan"]
[Black "Kabinazar, Nurmukhammed"]
[Result "0-1"]
[Annotator "NA RC"]
[ECO "E16"]
[WhiteElo "1955"]
[BlackElo "2057"]
[PlyCount "218"]
[EventDate "2025.03.19"]
[EventType "swiss"]
[EventCountry "SRB"]
[SourceTitle "playchess.com"]
[Source "ChessBase"]
[SourceQuality "1"]
[TimeControl "5400+30"]

1. d4 {[%emt 0:02:29]} Nf6 {[%emt 0:00:18]} 2. c4 {[%emt 0:00:05]} e6 {[%emt 0:00:06]} 3. Nf3 {[%emt 0:00:04]} d5 {[%emt 0:00:16]} 4. g3 {[%emt 0:00:06]} Bb4+ {[%emt 0:00:34]} 5. Nbd2 {[%emt 0:00:13]} O-O {[%emt 0:00:19]} 6. Bg2 {[%emt 0:01:18]} b6 {[%emt 0:00:56]} 7. O-O {[%emt 0:00:09]} Bb7 {[%emt 0:02:46]} 8. a3 {[%emt 0:10:56]} Be7 {[%emt 0:00:28]} 9. Ne5 {[%emt 0:00:12]} a5 {[%emt 0:09:36]} 10. b3 {[%emt 0:11:21]} Nbd7 {[%emt 0:03:04]} 11. Bb2 {[%emt 0:00:09]} c5 {[%emt 0:09:20]} 12. cxd5 {[%emt 0:05:16]} exd5 {[%emt 0:01:19]} 13. Ndc4 {[%emt 0:03:36]} Qc7 $16 {[%emt 0:16:36]} (13... Re8 $11 {remains equal.}) 14. Nxd7 {[%emt 0:01:04]} Nxd7 {[%emt 0:00:43]} 15. Ne3 {[%emt 0:00:06]} Nf6 {[%emt 0:08:47]} 16. dxc5 {[%emt 0:11:15]} bxc5 {[%emt 0:01:54]} 17. Nxd5 {[%emt 0:07:07]} Nxd5 {[%emt 0:03:54]} 18. Bxd5 {[%emt 0:00:05]} Rfd8 {[%emt 0:01:43]} 19. e4 {[%emt 0:00:06]} Bxd5 {[%emt 0:00:10]} 20. exd5 {[%emt 0:00:04]} Qb7 {[%emt 0:00:12]} 21. Re1 {[%emt 0:05:52]} Rxd5 {[%emt 0:01:37]} 22. Qf3 {[%emt 0:00:32]} Rd7 {[%emt 0:01:50]} 23. Qg4 {[%emt 0:00:58]} Bf8 {[%emt 0:00:15]} 24. Re3 {[%emt 0:03:14]} Re7 {[%emt 0:06:37]} 25. Rae1 {[%emt 0:00:40]} Rxe3 {[%emt 0:00:20]} 26. Rxe3 {[%emt 0:00:00]} a4 {[%emt 0:03:18]} 27. Qd1 {[%emt 0:02:26]} axb3 {[%emt 0:07:01]} 28. Rxb3 {[%emt 0:00:01]} Qc6 {[%emt 0:00:30]} 29. Rf3 {[%emt 0:04:31]} c4 {[%emt 0:02:32]} 30. Rf4 {[%emt 0:00:02]} Re8 {[%emt 0:11:48]} 31. Qd2 {[%emt 0:01:49]} Rc8 {[%emt 0:02:56]} 32. Qc3 {[%emt 0:02:34]} Rd8 {[%emt 0:00:56]} 33. Qc2 {[%emt 0:02:44]} Re8 {[%emt 0:01:03]} 34. Qc3 {[%emt 0:00:16]} Rd8 {[%emt 0:02:37]} 35. Qc2 {[%emt 0:00:10]} Re8 {[%emt 0:00:14]} 36. f3 {[%emt 0:00:47]} Qd5 {[%emt 0:01:12]} 37. Re4 {[%emt 0:08:07]} Rxe4 {[%emt 0:00:34]} 38. fxe4 {[%emt 0:00:08]} Qc5+ {[%emt 0:00:22]} 39. Kg2 {[%emt 0:00:06]} c3 {[%emt 0:00:25]} 40. Bxc3 {[%emt 0:00:37]} Qxa3 {[%emt 0:00:03]} 41. Bd4 {[%emt 0:00:54]} Qb4 {[%emt 0:00:18]} 42. Be3 {[%emt 0:00:07]} Qb5 {[%emt 0:00:21]} 43. Bf2 {[%emt 0:00:18]} h6 {[%emt 0:00:18]} 44. h3 {[%emt 0:01:12]} h5 {[%emt 0:00:59]} 45. Qd1 {[%emt 0:00:09]} Qc4 {[%emt 0:00:53]} 46. Qf3 {[%emt 0:00:17]} g6 {[%emt 0:00:29]} 47. g4 {[%emt 0:00:20]} hxg4 {[%emt 0:00:07]} 48. hxg4 {[%emt 0:00:00]} Bg7 {[%emt 0:00:25]} 49. Bg3 {[%emt 0:01:13]} Qc2+ {[%emt 0:00:34]} 50. Kh3 {[%emt 0:00:01]} Qc3 {[%emt 0:00:13]} 51. Qf4 {[%emt 0:00:14]} Qa1 {[%emt 0:00:42]} 52. e5 {[%emt 0:00:53]} Qh1+ {[%emt 0:00:24]} 53. Bh2 {[%emt 0:00:01]} Qd5 {[%emt 0:00:13]} 54. Qe3 {[%emt 0:00:29]} Kh7 {[%emt 0:00:46]} 55. Bf4 {[%emt 0:00:56]} Qh1+ {[%emt 0:00:26]} 56. Kg3 {[%emt 0:00:02]} Qd5 {[%emt 0:00:08]} 57. g5 {[%emt 0:01:03]} Kg8 {[%emt 0:00:17]} 58. Qc3 {[%emt 0:00:17]} Kh7 {[%emt 0:00:25]} 59. Qe3 {[%emt 0:01:16]} Kg8 {[%emt 0:00:08]} 60. Qe2 {[%emt 0:01:15]} Qb3+ {[%emt 0:00:11]} 61. Kh2 {[%emt 0:00:30]} Qd5 {[%emt 0:00:29]} 62. Bg3 {[%emt 0:01:44]} Kh7 {[%emt 0:00:41]} 63. Qg2 {[%emt 0:00:30]} Qc4 {[%emt 0:01:09]} 64. Qf2 {[%emt 0:01:08]} Kg8 {[%emt 0:00:10]} 65. Qf3 {[%emt 0:00:14]} Qc2+ {[%emt 0:00:30]} 66. Kh3 {[%emt 0:00:08]} Qc4 {[%emt 0:00:12]} 67. Qf4 {[%emt 0:01:31]} Qd5 {[%emt 0:00:48]} 68. Qe3 {[%emt 0:01:02]} Qh1+ {[%emt 0:00:14]} 69. Bh2 {[%emt 0:00:07]} Qf1+ {[%emt 0:00:20]} 70. Kh4 {[%emt 0:00:10]} Qg2 {[%emt 0:01:01]} 71. Bg3 {[%emt 0:01:04]} Qh1+ {[%emt 0:00:14]} 72. Kg4 {[%emt 0:00:02]} Qh5+ {[%emt 0:00:13]} 73. Kf4 {[%emt 0:00:03]} Bh6 {[%emt 0:00:07]} 74. Ke4 {[%emt 0:00:48]} Bxg5 {[%emt 0:00:37]} 75. Qf2 {[%emt 0:01:42]} Qh1+ {[%emt 0:01:03]} 76. Kd3 {[%emt 0:00:30]} Qd5+ {[%emt 0:00:20]} 77. Ke2 {[%emt 0:00:21]} Qe4+ {[%emt 0:00:20]} 78. Kf1 {[%emt 0:00:35]} Be3 {[%emt 0:01:31]} 79. Qf6 {[%emt 0:01:31]} Bd4 {[%emt 0:01:14]} 80. Qd8+ {[%emt 0:01:42]} Kh7 {[%emt 0:00:36]} 81. Qf6 {[%emt 0:00:22]} Kg8 {[%emt 0:00:56]} 82. Qd8+ {[%emt 0:00:02]} Kh7 {[%emt 0:00:01]} 83. Qf6 {[%emt 0:00:01]} Qd5 {[%emt 0:00:35]} 84. Ke2 {[%emt 0:01:21]} Kg8 {[%emt 0:00:19]} 85. Bf4 {[%emt 0:01:27]} Bc3 {[%emt 0:00:59]} 86. Ke3 {[%emt 0:03:44]} Qd2+ {[%emt 0:00:45]} 87. Kf3 {[%emt 0:01:08]} Qd3+ {[%emt 0:00:15]} 88. Kg2 {[%emt 0:00:09]} Qe2+ {[%emt 0:00:10]} 89. Kh1 {[%emt 0:00:47]} Be1 {[%emt 0:01:03]} 90. Bh2 {[%emt 0:01:08]} Bf2 {[%emt 0:00:30]} 91. Bg1 {[%emt 0:03:33]} Qe4+ {[%emt 0:00:09]} 92. Kh2 {[%emt 0:00:01]} Bh4 {[%emt 0:00:53]} 93. Qf1 {[%emt 0:00:17]} Qxe5+ {[%emt 0:00:14]} 94. Kh1 {[%emt 0:00:05]} Qe4+ {[%emt 0:00:11]} 95. Kh2 {[%emt 0:00:05]} Be7 {[%emt 0:00:21]} 96. Qd1 {[%emt 0:00:19]} Bf6 {[%emt 0:00:18]} 97. Bf2 {[%emt 0:00:10]} Be5+ {[%emt 0:00:06]} 98. Kg1 {[%emt 0:00:03]} Qf4 {[%emt 0:00:25]} 99. Qd5 {[%emt 0:00:24]} Qf5 {[%emt 0:00:41]} 100. Kf1 {[%emt 0:00:01]} Qf6 {[%emt 0:00:32]} 101. Qa8+ {[%emt 0:00:06]} Kg7 {[%emt 0:00:07]} 102. Ke2 {[%emt 0:00:21]} g5 {[%emt 0:00:28]} 103. Qg2 {[%emt 0:00:12]} Qf5 {[%emt 0:00:24]} 104. Qc6 {[%emt 0:00:18]} g4 {[%emt 0:00:35]} 105. Be3 {[%emt 0:00:03]} Bf6 {[%emt 0:00:31]} 106. Qg2 {[%emt 0:00:53]} Qc2+ {[%emt 0:00:26]} 107. Bd2 {[%emt 0:00:03]} Bg5 {[%emt 0:00:12]} 108. Qxg4 {[%emt 0:00:14]} Qxd2+ {[%emt 0:00:03]} 109. Kf1 {[%emt 0:00:04]} Qf4+ {[%emt 0:00:03]} 0-1

[Event "FIDE World School-ch O-15 2025"]
[Site "Vrnjacka Banja"]
[Date "2025.03.28"]
[Round "9.4"]
[White "Ashikmamutov, Saidkhon"]
[Black "Dandeniya, D D L N"]
[Result "1-0"]
[Annotator "NA RC"]
[ECO "A01"]
[WhiteElo "1978"]
[BlackElo "1881"]
[PlyCount "77"]
[EventDate "2025.03.19"]
[EventType "swiss"]
[EventCountry "SRB"]
[SourceTitle "playchess.com"]
[Source "ChessBase"]
[SourceQuality "1"]
[TimeControl "5400+30"]

1. b3 {[%emt 0:01:41]} Nf6 {[%emt 0:00:25]} 2. Bb2 {[%emt 0:00:06]} g6 {[%emt 0:00:19]} 3. Bxf6 {[%emt 0:00:04]} exf6 {[%emt 0:00:11]} 4. c4 {[%emt 0:00:00]} Bg7 {[%emt 0:00:12]} 5. Nc3 {[%emt 0:00:30]} O-O {[%emt 0:00:14]} 6. g3 {[%emt 0:00:02]} Re8 {[%emt 0:00:36]} 7. Bg2 {[%emt 0:00:14]} d6 {[%emt 0:00:16]} 8. e3 {[%emt 0:00:10]} Nd7 {[%emt 0:00:29]} 9. Nge2 {[%emt 0:05:13]} f5 {[%emt 0:00:14]} 10. d4 {[%emt 0:00:13]} c6 {[%emt 0:00:51]} 11. h4 {[%emt 0:00:30]} Nf6 {[%emt 0:00:54]} 12. O-O {[%emt 0:12:05]} Bd7 {[%emt 0:02:01]} 13. Qd3 {[%emt 0:03:33]} a6 {[%emt 0:03:19]} 14. b4 {[%emt 0:22:42]} b5 {[%emt 0:06:32]} 15. Nf4 {[%emt 0:09:00]} bxc4 16. Qxc4 {[%emt 0:00:01]} Ne4 {[%emt 0:09:28]} 17. Rfc1 {[%emt 0:02:34]} Qe7 {[%emt 0:06:34]} 18. Qf1 {[%emt 0:02:16]} Nxg3 {[%emt 0:02:21]} 19. fxg3 {[%emt 0:00:25]} Qxe3+ {[%emt 0:00:02]} 20. Kh2 {[%emt 0:06:27]} Qxd4 {[%emt 0:02:25]} 21. Nce2 {[%emt 0:00:55]} Qxb4 {[%emt 0:02:04]} 22. Rab1 {[%emt 0:00:56]} Qa3 {[%emt 0:10:17]} 23. Rb7 {[%emt 0:00:50]} Rad8 {[%emt 0:02:11]} 24. Rxd7 {[%emt 0:06:47]} Rxd7 {[%emt 0:00:03]} 25. Bxc6 {[%emt 0:00:01]} Rde7 {[%emt 0:00:39]} 26. Bxe8 Rxe8 {[%emt 0:00:01]} 27. Rc2 {[%emt 0:01:14]} h6 {[%emt 0:19:31]} 28. Qc1 {[%emt 0:12:13]} Qa4 {[%emt 0:00:06]} 29. Rc8 {[%emt 0:01:45]} Rxc8 {[%emt 0:00:24]} 30. Qxc8+ {[%emt 0:00:01]} Kh7 {[%emt 0:00:01]} 31. h5 {[%emt 0:05:27]} Qxa2 {[%emt 0:08:34]} 32. hxg6+ {[%emt 0:07:26]} fxg6 {[%emt 0:00:01]} 33. Qe8 {[%emt 0:00:00]} g5 {[%emt 0:01:14]} 34. Nh5 {[%emt 0:01:06]} Be5 {[%emt 0:25:01]} 35. Kh3 Qg8 {[%emt 0:00:00]} 36. Qd7+ {[%emt 0:01:19]} Kg6 {[%emt 0:00:00]} 37. g4 {[%emt 0:00:07]} fxg4+ {[%emt 0:00:00]} 38. Kxg4 {[%emt 0:00:22]} Qc4+ {[%emt 0:00:00]} 39. Nef4+ {[%emt 0:00:01]} 1-0

[Event "FIDE World School-ch O-15 2025"]
[Site "Vrnjacka Banja"]
[Date "2025.03.28"]
[Round "9.5"]
[White "Tulendinov, Dinmukhammed"]
[Black "Harabor, David-Alexandru"]
[Result "1-0"]
[Annotator "NA RC"]
[ECO "C60"]
[WhiteElo "2173"]
[BlackElo "1989"]
[PlyCount "103"]
[EventDate "2025.03.19"]
[EventType "swiss"]
[EventCountry "SRB"]
[SourceTitle "playchess.com"]
[Source "ChessBase"]
[SourceQuality "1"]
[TimeControl "5400+30"]

1. e4 {[%emt 0:00:05]} e5 {[%emt 0:03:44]} 2. Nf3 {[%emt 0:00:13]} Nc6 {[%emt 0:00:07]} 3. Bb5 {[%emt 0:00:14]} a6 {[%emt 0:00:20]} 4. Ba4 {[%emt 0:00:08]} Nge7 {[%emt 0:00:15]} 5. O-O {[%emt 0:00:34]} Ng6 {[%emt 0:01:36]} 6. d4 {[%emt 0:00:43]} exd4 {[%emt 0:15:46]} 7. Nxd4 {[%emt 0:00:30]} Bc5 {[%emt 0:22:34]} 8. Be3 {[%emt 0:06:05]} Nxd4 {[%emt 0:01:04]} 9. Bxd4 {[%emt 0:00:02]} Bxd4 {[%emt 0:00:01]} 10. Qxd4 {[%emt 0:00:01]} O-O {[%emt 0:00:33]} 11. Nc3 {[%emt 0:00:48]} d6 {[%emt 0:00:25]} 12. Bb3 {[%emt 0:01:51]} Be6 {[%emt 0:05:03]} 13. Qd2 {[%emt 0:03:02]} Ne7 {[%emt 0:11:38]} 14. Rad1 {[%emt 0:05:03]} Qc8 {[%emt 0:06:05]} 15. f4 $14 {[%emt 0:01:03]} Bxb3 {[%emt 0:00:25]} 16. axb3 {[%emt 0:00:00]} f5 {[%emt 0:00:16]} 17. Rde1 {[%emt 0:08:29]} fxe4 {[%emt 0:01:32]} 18. Rxe4 {[%emt 0:01:24]} Qd7 {[%emt 0:03:01]} 19. Rfe1 {[%emt 0:03:29]} Nc6 {[%emt 0:00:01]} 20. Nd5 {[%emt 0:00:34]} Qf7 {[%emt 0:03:01]} 21. c4 {[%emt 0:08:13]} Rac8 {[%emt 0:03:18]} 22. b4 {[%emt 0:03:16]} Rce8 {[%emt 0:05:04]} 23. Rxe8 {[%emt 0:08:00]} Rxe8 {[%emt 0:00:02]} 24. Rxe8+ {[%emt 0:00:01]} Qxe8 {[%emt 0:00:16]} 25. Nxc7 {[%emt 0:00:12]} Qe7 {[%emt 0:04:38]} 26. Qd5+ {[%emt 0:01:40]} Kh8 {[%emt 0:00:33]} 27. Qe6 {[%emt 0:00:29]} Qxe6 {[%emt 0:00:13]} 28. Nxe6 {[%emt 0:00:01]} Nxb4 {[%emt 0:00:01]} 29. Nd8 {[%emt 0:00:01]} Nd3 {[%emt 0:02:44]} 30. Nxb7 {[%emt 0:01:20]} Nxb2 {[%emt 0:00:09]} 31. Nxd6 {[%emt 0:00:02]} Nd3 {[%emt 0:00:12]} 32. g3 {[%emt 0:03:05]} a5 {[%emt 0:03:04]} 33. Kf1 {[%emt 0:01:36]} a4 {[%emt 0:01:01]} 34. Nb5 {[%emt 0:00:56]} Kg8 {[%emt 0:01:47]} 35. Ke2 {[%emt 0:02:51]} Nc5 {[%emt 0:00:06]} 36. Ke3 {[%emt 0:08:42]} Kf7 {[%emt 0:00:07]} 37. Kd4 {[%emt 0:00:08]} Ne6+ {[%emt 0:00:05]} 38. Ke5 {[%emt 0:08:44]} Ke7 {[%emt 0:01:59]} 39. g4 {[%emt 0:10:44]} Kd7 {[%emt 0:01:56]} 40. h4 {[%emt 0:01:26]} Nc7 {[%emt 0:00:40]} 41. Nxc7 {[%emt 0:05:38]} Kxc7 {[%emt 0:01:48]} 42. Kd4 {[%emt 0:00:00]} Kc6 {[%emt 0:00:11]} 43. f5 {[%emt 0:01:50]} a3 {[%emt 0:00:42]} 44. Kc3 {[%emt 0:00:03]} Kc5 {[%emt 0:00:54]} 45. g5 {[%emt 0:00:15]} Kd6 {[%emt 0:01:38]} 46. g6 {[%emt 0:01:16]} hxg6 {[%emt 0:00:47]} 47. fxg6 {[%emt 0:00:02]} Ke6 {[%emt 0:00:44]} 48. h5 {[%emt 0:00:13]} Kf5 {[%emt 0:00:48]} 49. Kb3 {[%emt 0:00:35]} Kg5 {[%emt 0:00:28]} 50. c5 {[%emt 0:00:12]} Kxh5 {[%emt 0:00:10]} 51. c6 {[%emt 0:00:05]} Kxg6 {[%emt 0:00:08]} 52. c7 {[%emt 0:00:03]} 1-0

[Event "FIDE World School-ch O-15 2025"]
[Site "Vrnjacka Banja"]
[Date "2025.03.28"]
[Round "9.6"]
[White "Durucay, Uygar"]
[Black "Cirkovic, Vuk"]
[Result "1/2-1/2"]
[Annotator "NA RC"]
[ECO "A48"]
[WhiteElo "2159"]
[BlackElo "1981"]
[PlyCount "56"]
[EventDate "2025.03.19"]
[EventType "swiss"]
[EventCountry "SRB"]
[SourceTitle "playchess.com"]
[Source "ChessBase"]
[SourceQuality "1"]
[TimeControl "5400+30"]

1. d4 {[%emt 0:00:07]} Nf6 {[%emt 0:01:14]} 2. Nf3 {[%emt 0:01:01]} g6 {[%emt 0:00:32]} 3. Bg5 {[%emt 0:00:10]} Bg7 {[%emt 0:01:07]} 4. Nbd2 {[%emt 0:00:10]} O-O {[%emt 0:01:53]} 5. e3 {[%emt 0:00:08]} d6 {[%emt 0:01:32]} 6. Bc4 {[%emt 0:00:24]} c5 {[%emt 0:04:24]} 7. c3 {[%emt 0:00:22]} Nc6 {[%emt 0:02:29]} 8. O-O {[%emt 0:01:06]} h6 {[%emt 0:05:27]} 9. Bh4 {[%emt 0:06:37]} cxd4 {[%emt 0:09:19]} 10. cxd4 {[%emt 0:05:40]} Bf5 {[%emt 0:03:20]} 11. d5 {[%emt 0:15:16]} Ne5 {[%emt 0:09:55]} 12. Nxe5 {[%emt 0:00:11]} dxe5 {[%emt 0:00:02]} 13. Bxf6 {[%emt 0:07:02]} Bxf6 {[%emt 0:01:58]} 14. e4 {[%emt 0:02:31]} Bd7 $11 {[%emt 0:00:11]} 15. a4 {[%emt 0:04:13]} Qb6 {[%emt 0:09:32]} 16. Qb3 {[%emt 0:01:10]} Qxb3 {[%emt 0:00:06]} 17. Nxb3 {[%emt 0:01:33]} Rfc8 {[%emt 0:01:27]} 18. Rfc1 {[%emt 0:01:25]} a6 {[%emt 0:05:16]} 19. Bf1 {[%emt 0:15:19]} Rxc1 {[%emt 0:06:27]} 20. Rxc1 {[%emt 0:00:06]} Rc8 {[%emt 0:01:26]} 21. Rxc8+ {[%emt 0:04:55]} Bxc8 {[%emt 0:00:01]} 22. Nc5 {[%emt 0:08:41]} Bg5 {[%emt 0:06:13]} 23. Bc4 {[%emt 0:01:23]} Kf8 {[%emt 0:01:57]} 24. Nd3 {[%emt 0:09:39]} f6 {[%emt 0:03:40]} 25. g3 {[%emt 0:06:38]} Bd2 {[%emt 0:04:02]} 26. Kg2 {[%emt 0:00:31]} Bd7 {[%emt 0:00:13]} 27. Nc5 {[%emt 0:01:27]} Bc8 {[%emt 0:00:11]} 28. Nd3 {[%emt 0:02:28]} Bd7 {[%emt 0:00:19]} 1/2-1/2